{"text_format":"3","workbook":"xlsx","n_sheets":3,"sheets":["Zostava mesačného rozpočtu","Mesačné výdavky","Ďalšie údaje"],"not_rendered":{"charts":1,"defined_names":4,"pivot_tables":2},"read":"whole","date_system":"1900"}

{"sheet":"Zostava mesačného rozpočtu","index":0,"n_rows":34,"n_cols":13,"rows_kept":34,"merged":[[7,1,10,1],[7,5,10,5],[7,6,10,6],[12,1,16,1],[12,5,16,5],[12,6,16,6]]}
[null,"Prehľad rozpočtu",{"$nulls":7},"Rozpočtový súhrn"]
[null,"Zostatok"]
[null,"Plánovaný zostatok","(Plán bez výdavkov)",{"$nulls":3},{"$f":"D17-SUM(Podrobnosti_o_rozpočte[Plánované náklady])","v":{"v":1585,"d":"1,585 €"}}]
[null,"Skutočný zostatok ","(Skutočnosť bez výdavkov)",{"$nulls":3},{"$f":"D11-SUM(Podrobnosti_o_rozpočte[Skutočné náklady])","v":{"v":1740,"d":"1,740 €"}}]
[null,"Rozdiel","(Skutočnosť bez plánu)",{"$nulls":3},{"$f":"G4-G3","v":{"v":155,"d":"155 €"}}]
[]
[null,"Príjmy",{"$nulls":3},"Výdavky",{"$nulls":3},"Kliknite pravým tlačidlom myši na kontingenčnú tabuľku nižšie a kliknutím na tlačidlo Obnoviť ju aktualizujte"]
[null,"SKUTOČNOSŤ","Príjem 1",{"v":5800,"d":"5,800 €"},null,"SKUTOČNOSŤ",{"$f":"SUM(Podrobnosti_o_rozpočte[Skutočné náklady])","v":{"v":7860,"d":"7,860 €"}}]
[null,null,"Príjem 2",{"v":2300,"d":"2,300 €"},{"$nulls":5},"Kategória","Súčet z Plánované náklady","Súčet z Skutočné náklady","Súčet z Rozdiel"]
[null,null,"Dodatočný príjem",{"v":1500,"d":"1,500 €"},{"$nulls":5},"Deti",140,140,0]
[null,null,"Celkové príjmy",{"$f":"SUM(D8:D10)","v":{"v":9600,"d":"9,600 €"}}]
[{"$nulls":9},"Zábava",400,358,42]
[null,"PLÁN",{"$nulls":3},"PLÁN",{"$f":"SUM(Podrobnosti_o_rozpočte[Plánované náklady])","v":{"v":7915,"d":"7,915 €"}}]
[null,null,"Príjem 1",{"v":6000,"d":"6,000 €"},{"$nulls":5},"Jedlo",1100,1320,-220]
[null,null,"Príjem 2",{"v":1000,"d":"1,000 €"}]
[null,null,"Dodatočný príjem",{"v":2500,"d":"2,500 €"},{"$nulls":5},"Dary a charita",100,125,-25]
[null,null,"Celkové príjmy",{"$f":"SUM(D14:D16)","v":{"v":9500,"d":"9,500 €"}}]
[{"$nulls":9},"Bývanie",2830,2702,128]
[]
[{"$nulls":9},"Poistenie",900,900,0]
[]
[{"$nulls":9},"Pôžičky",200,200,0]
[]
[{"$nulls":9},"Osobná starostlivosť",150,140,10]
[]
[{"$nulls":9},"Domáce zvieratá",170,100,70]
[]
[{"$nulls":9},"Úspory alebo investície",200,200,0]
[]
[{"$nulls":9},"Dane",300,300,0]
[]
[{"$nulls":9},"Preprava",1425,1375,50]
[]
[{"$nulls":9},"Celkový súčet",7915,7860,55]

{"sheet":"Mesačné výdavky","index":1,"n_rows":62,"n_cols":7,"rows_kept":62}
[null,"Mesačné výdavky"]
[null,"Popis","Kategória","Plánované náklady","Skutočné náklady","Rozdiel","Prehľad skutočných nákladov"]
[null,"Mimoškolské aktivity","Deti",{"v":40,"d":"40 €"},{"v":40,"d":"40 €"},{"$f":"Podrobnosti_o_rozpočte[[#This Row],[Plánované náklady]]-Podrobnosti_o_rozpočte[[#This Row],[Skutočné náklady]]","v":{"v":0,"d":"0 €"}},{"$f":"Podrobnosti_o_rozpočte[[#This Row],[Skutočné náklady]]","v":{"v":40,"d":"40 €"}}]
[null,"Zdravotná starostlivosť","Deti",null,null,{"$f":"Podrobnosti_o_rozpočte[[#This Row],[Plánované náklady]]-Podrobnosti_o_rozpočte[[#This Row],[Skutočné náklady]]","v":{"v":0,"d":"0 €"}},{"$f":"Podrobnosti_o_rozpočte[[#This Row],[Skutočné náklady]]","v":{"v":0,"d":"0 €"}}]
[null,"Školské potreby","Deti",null,null,{"$f":"Podrobnosti_o_rozpočte[[#This Row],[Plánované náklady]]-Podrobnosti_o_rozpočte[[#This Row],[Skutočné náklady]]","v":{"v":0,"d":"0 €"}},{"$f":"Podrobnosti_o_rozpočte[[#This Row],[Skutočné náklady]]","v":{"v":0,"d":"0 €"}}]
[null,"Školné","Deti",{"v":100,"d":"100 €"},{"v":100,"d":"100 €"},{"$f":"Podrobnosti_o_rozpočte[[#This Row],[Plánované náklady]]-Podrobnosti_o_rozpočte[[#This Row],[Skutočné náklady]]","v":{"v":0,"d":"0 €"}},{"$f":"Podrobnosti_o_rozpočte[[#This Row],[Skutočné náklady]]","v":{"v":100,"d":"100 €"}}]
[null,"Koncerty","Zábava",{"v":50,"d":"50 €"},{"v":40,"d":"40 €"},{"$f":"Podrobnosti_o_rozpočte[[#This Row],[Plánované náklady]]-Podrobnosti_o_rozpočte[[#This Row],[Skutočné náklady]]","v":{"v":10,"d":"10 €"}},{"$f":"Podrobnosti_o_rozpočte[[#This Row],[Skutočné náklady]]","v":{"v":40,"d":"40 €"}}]
[null,"Divadlo","Zábava",{"v":200,"d":"200 €"},{"v":150,"d":"150 €"},{"$f":"Podrobnosti_o_rozpočte[[#This Row],[Plánované náklady]]-Podrobnosti_o_rozpočte[[#This Row],[Skutočné náklady]]","v":{"v":50,"d":"50 €"}},{"$f":"Podrobnosti_o_rozpočte[[#This Row],[Skutočné náklady]]","v":{"v":150,"d":"150 €"}}]
[null,"Kino","Zábava",{"v":50,"d":"50 €"},{"v":28,"d":"28 €"},{"$f":"Podrobnosti_o_rozpočte[[#This Row],[Plánované náklady]]-Podrobnosti_o_rozpočte[[#This Row],[Skutočné náklady]]","v":{"v":22,"d":"22 €"}},{"$f":"Podrobnosti_o_rozpočte[[#This Row],[Skutočné náklady]]","v":{"v":28,"d":"28 €"}}]
[null,"Hudba (CD, sťahovanie atď.)","Zábava",{"v":50,"d":"50 €"},{"v":30,"d":"30 €"},{"$f":"Podrobnosti_o_rozpočte[[#This Row],[Plánované náklady]]-Podrobnosti_o_rozpočte[[#This Row],[Skutočné náklady]]","v":{"v":20,"d":"20 €"}},{"$f":"Podrobnosti_o_rozpočte[[#This Row],[Skutočné náklady]]","v":{"v":30,"d":"30 €"}}]
[null,"Športové udalosti","Zábava",{"v":0,"d":"0 €"},{"v":40,"d":"40 €"},{"$f":"Podrobnosti_o_rozpočte[[#This Row],[Plánované náklady]]-Podrobnosti_o_rozpočte[[#This Row],[Skutočné náklady]]","v":{"v":-40,"d":"-40 €"}},{"$f":"Podrobnosti_o_rozpočte[[#This Row],[Skutočné náklady]]","v":{"v":40,"d":"40 €"}}]
[null,"Video a DVD (nákup)","Zábava",{"v":20,"d":"20 €"},{"v":50,"d":"50 €"},{"$f":"Podrobnosti_o_rozpočte[[#This Row],[Plánované náklady]]-Podrobnosti_o_rozpočte[[#This Row],[Skutočné náklady]]","v":{"v":-30,"d":"-30 €"}},{"$f":"Podrobnosti_o_rozpočte[[#This Row],[Skutočné náklady]]","v":{"v":50,"d":"50 €"}}]
[null,"Video a DVD (požičanie)","Zábava",{"v":30,"d":"30 €"},{"v":20,"d":"20 €"},{"$f":"Podrobnosti_o_rozpočte[[#This Row],[Plánované náklady]]-Podrobnosti_o_rozpočte[[#This Row],[Skutočné náklady]]","v":{"v":10,"d":"10 €"}},{"$f":"Podrobnosti_o_rozpočte[[#This Row],[Skutočné náklady]]","v":{"v":20,"d":"20 €"}}]
[null,"Reštaurácie","Jedlo",{"v":1000,"d":"1,000 €"},{"v":1200,"d":"1,200 €"},{"$f":"Podrobnosti_o_rozpočte[[#This Row],[Plánované náklady]]-Podrobnosti_o_rozpočte[[#This Row],[Skutočné náklady]]","v":{"v":-200,"d":"-200 €"}},{"$f":"Podrobnosti_o_rozpočte[[#This Row],[Skutočné náklady]]","v":{"v":1200,"d":"1,200 €"}}]
[null,"Potraviny","Jedlo",{"v":100,"d":"100 €"},{"v":120,"d":"120 €"},{"$f":"Podrobnosti_o_rozpočte[[#This Row],[Plánované náklady]]-Podrobnosti_o_rozpočte[[#This Row],[Skutočné náklady]]","v":{"v":-20,"d":"-20 €"}},{"$f":"Podrobnosti_o_rozpočte[[#This Row],[Skutočné náklady]]","v":{"v":120,"d":"120 €"}}]
[null,"Charita 1","Dary a charita",{"v":75,"d":"75 €"},{"v":100,"d":"100 €"},{"$f":"Podrobnosti_o_rozpočte[[#This Row],[Plánované náklady]]-Podrobnosti_o_rozpočte[[#This Row],[Skutočné náklady]]","v":{"v":-25,"d":"-25 €"}},{"$f":"Podrobnosti_o_rozpočte[[#This Row],[Skutočné náklady]]","v":{"v":100,"d":"100 €"}}]
[null,"Charita 2","Dary a charita",{"v":25,"d":"25 €"},{"v":25,"d":"25 €"},{"$f":"Podrobnosti_o_rozpočte[[#This Row],[Plánované náklady]]-Podrobnosti_o_rozpočte[[#This Row],[Skutočné náklady]]","v":{"v":0,"d":"0 €"}},{"$f":"Podrobnosti_o_rozpočte[[#This Row],[Skutočné náklady]]","v":{"v":25,"d":"25 €"}}]
[null,"Dar 1","Dary a charita",null,null,{"$f":"Podrobnosti_o_rozpočte[[#This Row],[Plánované náklady]]-Podrobnosti_o_rozpočte[[#This Row],[Skutočné náklady]]","v":{"v":0,"d":"0 €"}},{"$f":"Podrobnosti_o_rozpočte[[#This Row],[Skutočné náklady]]","v":{"v":0,"d":"0 €"}}]
[null,"Dar 2","Dary a charita",null,null,{"$f":"Podrobnosti_o_rozpočte[[#This Row],[Plánované náklady]]-Podrobnosti_o_rozpočte[[#This Row],[Skutočné náklady]]","v":{"v":0,"d":"0 €"}},{"$f":"Podrobnosti_o_rozpočte[[#This Row],[Skutočné náklady]]","v":{"v":0,"d":"0 €"}}]
[null,"Káblová televízia alebo satelit","Bývanie",{"v":100,"d":"100 €"},{"v":100,"d":"100 €"},{"$f":"Podrobnosti_o_rozpočte[[#This Row],[Plánované náklady]]-Podrobnosti_o_rozpočte[[#This Row],[Skutočné náklady]]","v":{"v":0,"d":"0 €"}},{"$f":"Podrobnosti_o_rozpočte[[#This Row],[Skutočné náklady]]","v":{"v":100,"d":"100 €"}}]
[null,"Elektrina","Bývanie",{"v":45,"d":"45 €"},{"v":50,"d":"50 €"},{"$f":"Podrobnosti_o_rozpočte[[#This Row],[Plánované náklady]]-Podrobnosti_o_rozpočte[[#This Row],[Skutočné náklady]]","v":{"v":-5,"d":"-5 €"}},{"$f":"Podrobnosti_o_rozpočte[[#This Row],[Skutočné náklady]]","v":{"v":50,"d":"50 €"}}]
[null,"Plyn","Bývanie",{"v":300,"d":"300 €"},{"v":400,"d":"400 €"},{"$f":"Podrobnosti_o_rozpočte[[#This Row],[Plánované náklady]]-Podrobnosti_o_rozpočte[[#This Row],[Skutočné náklady]]","v":{"v":-100,"d":"-100 €"}},{"$f":"Podrobnosti_o_rozpočte[[#This Row],[Skutočné náklady]]","v":{"v":400,"d":"400 €"}}]
[null,"Upratovacia služba","Bývanie",{"v":200,"d":"200 €"},null,{"$f":"Podrobnosti_o_rozpočte[[#This Row],[Plánované náklady]]-Podrobnosti_o_rozpočte[[#This Row],[Skutočné náklady]]","v":{"v":200,"d":"200 €"}},{"$f":"Podrobnosti_o_rozpočte[[#This Row],[Skutočné náklady]]","v":{"v":0,"d":"0 €"}}]
[null,"Údržba","Bývanie",{"v":200,"d":"200 €"},{"v":150,"d":"150 €"},{"$f":"Podrobnosti_o_rozpočte[[#This Row],[Plánované náklady]]-Podrobnosti_o_rozpočte[[#This Row],[Skutočné náklady]]","v":{"v":50,"d":"50 €"}},{"$f":"Podrobnosti_o_rozpočte[[#This Row],[Skutočné náklady]]","v":{"v":150,"d":"150 €"}}]
[null,"Hypotéka alebo prenájom","Bývanie",{"v":1700,"d":"1,700 €"},{"v":1700,"d":"1,700 €"},{"$f":"Podrobnosti_o_rozpočte[[#This Row],[Plánované náklady]]-Podrobnosti_o_rozpočte[[#This Row],[Skutočné náklady]]","v":{"v":0,"d":"0 €"}},{"$f":"Podrobnosti_o_rozpočte[[#This Row],[Skutočné náklady]]","v":{"v":1700,"d":"1,700 €"}}]
[null,"Zemný plyn a nafta","Bývanie",null,null,{"$f":"Podrobnosti_o_rozpočte[[#This Row],[Plánované náklady]]-Podrobnosti_o_rozpočte[[#This Row],[Skutočné náklady]]","v":{"v":0,"d":"0 €"}},{"$f":"Podrobnosti_o_rozpočte[[#This Row],[Skutočné náklady]]","v":{"v":0,"d":"0 €"}}]
[null,"Online a internetové služby","Bývanie",{"v":100,"d":"100 €"},{"v":100,"d":"100 €"},{"$f":"Podrobnosti_o_rozpočte[[#This Row],[Plánované náklady]]-Podrobnosti_o_rozpočte[[#This Row],[Skutočné náklady]]","v":{"v":0,"d":"0 €"}},{"$f":"Podrobnosti_o_rozpočte[[#This Row],[Skutočné náklady]]","v":{"v":100,"d":"100 €"}}]
[null,"Mobilný telefón","Bývanie",{"v":60,"d":"60 €"},{"v":60,"d":"60 €"},{"$f":"Podrobnosti_o_rozpočte[[#This Row],[Plánované náklady]]-Podrobnosti_o_rozpočte[[#This Row],[Skutočné náklady]]","v":{"v":0,"d":"0 €"}},{"$f":"Podrobnosti_o_rozpočte[[#This Row],[Skutočné náklady]]","v":{"v":60,"d":"60 €"}}]
[null,"Pevná linka","Bývanie",{"v":35,"d":"35 €"},{"v":39,"d":"39 €"},{"$f":"Podrobnosti_o_rozpočte[[#This Row],[Plánované náklady]]-Podrobnosti_o_rozpočte[[#This Row],[Skutočné náklady]]","v":{"v":-4,"d":"-4 €"}},{"$f":"Podrobnosti_o_rozpočte[[#This Row],[Skutočné náklady]]","v":{"v":39,"d":"39 €"}}]
[null,"Zásoby","Bývanie",{"v":40,"d":"40 €"},{"v":55,"d":"55 €"},{"$f":"Podrobnosti_o_rozpočte[[#This Row],[Plánované náklady]]-Podrobnosti_o_rozpočte[[#This Row],[Skutočné náklady]]","v":{"v":-15,"d":"-15 €"}},{"$f":"Podrobnosti_o_rozpočte[[#This Row],[Skutočné náklady]]","v":{"v":55,"d":"55 €"}}]
[null,"Odvoz odpadu a recyklácia","Bývanie",{"v":25,"d":"25 €"},{"v":22,"d":"22 €"},{"$f":"Podrobnosti_o_rozpočte[[#This Row],[Plánované náklady]]-Podrobnosti_o_rozpočte[[#This Row],[Skutočné náklady]]","v":{"v":3,"d":"3 €"}},{"$f":"Podrobnosti_o_rozpočte[[#This Row],[Skutočné náklady]]","v":{"v":22,"d":"22 €"}}]
[null,"Voda a kanalizácia","Bývanie",{"v":25,"d":"25 €"},{"v":26,"d":"26 €"},{"$f":"Podrobnosti_o_rozpočte[[#This Row],[Plánované náklady]]-Podrobnosti_o_rozpočte[[#This Row],[Skutočné náklady]]","v":{"v":-1,"d":"-1 €"}},{"$f":"Podrobnosti_o_rozpočte[[#This Row],[Skutočné náklady]]","v":{"v":26,"d":"26 €"}}]
[null,"Zdravie","Poistenie",{"v":400,"d":"400 €"},{"v":400,"d":"400 €"},{"$f":"Podrobnosti_o_rozpočte[[#This Row],[Plánované náklady]]-Podrobnosti_o_rozpočte[[#This Row],[Skutočné náklady]]","v":{"v":0,"d":"0 €"}},{"$f":"Podrobnosti_o_rozpočte[[#This Row],[Skutočné náklady]]","v":{"v":400,"d":"400 €"}}]
[null,"Domov","Poistenie",{"v":400,"d":"400 €"},{"v":400,"d":"400 €"},{"$f":"Podrobnosti_o_rozpočte[[#This Row],[Plánované náklady]]-Podrobnosti_o_rozpočte[[#This Row],[Skutočné náklady]]","v":{"v":0,"d":"0 €"}},{"$f":"Podrobnosti_o_rozpočte[[#This Row],[Skutočné náklady]]","v":{"v":400,"d":"400 €"}}]
[null,"Život","Poistenie",{"v":100,"d":"100 €"},{"v":100,"d":"100 €"},{"$f":"Podrobnosti_o_rozpočte[[#This Row],[Plánované náklady]]-Podrobnosti_o_rozpočte[[#This Row],[Skutočné náklady]]","v":{"v":0,"d":"0 €"}},{"$f":"Podrobnosti_o_rozpočte[[#This Row],[Skutočné náklady]]","v":{"v":100,"d":"100 €"}}]
[null,"Kreditná karta 1","Pôžičky",{"v":200,"d":"200 €"},{"v":200,"d":"200 €"},{"$f":"Podrobnosti_o_rozpočte[[#This Row],[Plánované náklady]]-Podrobnosti_o_rozpočte[[#This Row],[Skutočné náklady]]","v":{"v":0,"d":"0 €"}},{"$f":"Podrobnosti_o_rozpočte[[#This Row],[Skutočné náklady]]","v":{"v":200,"d":"200 €"}}]
[null,"Kreditná karta 2","Pôžičky",null,null,{"$f":"Podrobnosti_o_rozpočte[[#This Row],[Plánované náklady]]-Podrobnosti_o_rozpočte[[#This Row],[Skutočné náklady]]","v":{"v":0,"d":"0 €"}},{"$f":"Podrobnosti_o_rozpočte[[#This Row],[Skutočné náklady]]","v":{"v":0,"d":"0 €"}}]
[null,"Kreditná karta 3","Pôžičky",null,null,{"$f":"Podrobnosti_o_rozpočte[[#This Row],[Plánované náklady]]-Podrobnosti_o_rozpočte[[#This Row],[Skutočné náklady]]","v":{"v":0,"d":"0 €"}},{"$f":"Podrobnosti_o_rozpočte[[#This Row],[Skutočné náklady]]","v":{"v":0,"d":"0 €"}}]
[null,"Osobné","Pôžičky",null,null,{"$f":"Podrobnosti_o_rozpočte[[#This Row],[Plánované náklady]]-Podrobnosti_o_rozpočte[[#This Row],[Skutočné náklady]]","v":{"v":0,"d":"0 €"}},{"$f":"Podrobnosti_o_rozpočte[[#This Row],[Skutočné náklady]]","v":{"v":0,"d":"0 €"}}]
[null,"Študentské","Pôžičky",null,null,{"$f":"Podrobnosti_o_rozpočte[[#This Row],[Plánované náklady]]-Podrobnosti_o_rozpočte[[#This Row],[Skutočné náklady]]","v":{"v":0,"d":"0 €"}},{"$f":"Podrobnosti_o_rozpočte[[#This Row],[Skutočné náklady]]","v":{"v":0,"d":"0 €"}}]
[null,"Oblečenie","Osobná starostlivosť",{"v":150,"d":"150 €"},{"v":140,"d":"140 €"},{"$f":"Podrobnosti_o_rozpočte[[#This Row],[Plánované náklady]]-Podrobnosti_o_rozpočte[[#This Row],[Skutočné náklady]]","v":{"v":10,"d":"10 €"}},{"$f":"Podrobnosti_o_rozpočte[[#This Row],[Skutočné náklady]]","v":{"v":140,"d":"140 €"}}]
[null,"Čistiareň","Osobná starostlivosť",null,null,{"$f":"Podrobnosti_o_rozpočte[[#This Row],[Plánované náklady]]-Podrobnosti_o_rozpočte[[#This Row],[Skutočné náklady]]","v":{"v":0,"d":"0 €"}},{"$f":"Podrobnosti_o_rozpočte[[#This Row],[Skutočné náklady]]","v":{"v":0,"d":"0 €"}}]
[null,"Kaderník a manikúra","Osobná starostlivosť",null,null,{"$f":"Podrobnosti_o_rozpočte[[#This Row],[Plánované náklady]]-Podrobnosti_o_rozpočte[[#This Row],[Skutočné náklady]]","v":{"v":0,"d":"0 €"}},{"$f":"Podrobnosti_o_rozpočte[[#This Row],[Skutočné náklady]]","v":{"v":0,"d":"0 €"}}]
[null,"Fitnes","Osobná starostlivosť",null,null,{"$f":"Podrobnosti_o_rozpočte[[#This Row],[Plánované náklady]]-Podrobnosti_o_rozpočte[[#This Row],[Skutočné náklady]]","v":{"v":0,"d":"0 €"}},{"$f":"Podrobnosti_o_rozpočte[[#This Row],[Skutočné náklady]]","v":{"v":0,"d":"0 €"}}]
[null,"Zdravotná starostlivosť","Osobná starostlivosť",null,null,{"$f":"Podrobnosti_o_rozpočte[[#This Row],[Plánované náklady]]-Podrobnosti_o_rozpočte[[#This Row],[Skutočné náklady]]","v":{"v":0,"d":"0 €"}},{"$f":"Podrobnosti_o_rozpočte[[#This Row],[Skutočné náklady]]","v":{"v":0,"d":"0 €"}}]
[null,"Jedlo","Domáce zvieratá",{"v":150,"d":"150 €"},{"v":75,"d":"75 €"},{"$f":"Podrobnosti_o_rozpočte[[#This Row],[Plánované náklady]]-Podrobnosti_o_rozpočte[[#This Row],[Skutočné náklady]]","v":{"v":75,"d":"75 €"}},{"$f":"Podrobnosti_o_rozpočte[[#This Row],[Skutočné náklady]]","v":{"v":75,"d":"75 €"}}]
[null,"Ošetrovanie","Domáce zvieratá",{"v":20,"d":"20 €"},{"v":25,"d":"25 €"},{"$f":"Podrobnosti_o_rozpočte[[#This Row],[Plánované náklady]]-Podrobnosti_o_rozpočte[[#This Row],[Skutočné náklady]]","v":{"v":-5,"d":"-5 €"}},{"$f":"Podrobnosti_o_rozpočte[[#This Row],[Skutočné náklady]]","v":{"v":25,"d":"25 €"}}]
[null,"Zdravotná starostlivosť","Domáce zvieratá",null,null,{"$f":"Podrobnosti_o_rozpočte[[#This Row],[Plánované náklady]]-Podrobnosti_o_rozpočte[[#This Row],[Skutočné náklady]]","v":{"v":0,"d":"0 €"}},{"$f":"Podrobnosti_o_rozpočte[[#This Row],[Skutočné náklady]]","v":{"v":0,"d":"0 €"}}]
[null,"Hračky","Domáce zvieratá",null,null,{"$f":"Podrobnosti_o_rozpočte[[#This Row],[Plánované náklady]]-Podrobnosti_o_rozpočte[[#This Row],[Skutočné náklady]]","v":{"v":0,"d":"0 €"}},{"$f":"Podrobnosti_o_rozpočte[[#This Row],[Skutočné náklady]]","v":{"v":0,"d":"0 €"}}]
[null,"Investičné konto","Úspory alebo investície",{"v":200,"d":"200 €"},{"v":200,"d":"200 €"},{"$f":"Podrobnosti_o_rozpočte[[#This Row],[Plánované náklady]]-Podrobnosti_o_rozpočte[[#This Row],[Skutočné náklady]]","v":{"v":0,"d":"0 €"}},{"$f":"Podrobnosti_o_rozpočte[[#This Row],[Skutočné náklady]]","v":{"v":200,"d":"200 €"}}]
[null,"Dôchodkové sporenie","Úspory alebo investície",null,null,{"$f":"Podrobnosti_o_rozpočte[[#This Row],[Plánované náklady]]-Podrobnosti_o_rozpočte[[#This Row],[Skutočné náklady]]","v":{"v":0,"d":"0 €"}},{"$f":"Podrobnosti_o_rozpočte[[#This Row],[Skutočné náklady]]","v":{"v":0,"d":"0 €"}}]
[null,"Federálne","Dane",{"v":300,"d":"300 €"},{"v":300,"d":"300 €"},{"$f":"Podrobnosti_o_rozpočte[[#This Row],[Plánované náklady]]-Podrobnosti_o_rozpočte[[#This Row],[Skutočné náklady]]","v":{"v":0,"d":"0 €"}},{"$f":"Podrobnosti_o_rozpočte[[#This Row],[Skutočné náklady]]","v":{"v":300,"d":"300 €"}}]
[null,"Miestne","Dane",null,null,{"$f":"Podrobnosti_o_rozpočte[[#This Row],[Plánované náklady]]-Podrobnosti_o_rozpočte[[#This Row],[Skutočné náklady]]","v":{"v":0,"d":"0 €"}},{"$f":"Podrobnosti_o_rozpočte[[#This Row],[Skutočné náklady]]","v":{"v":0,"d":"0 €"}}]
[null,"Štátne","Dane",null,null,{"$f":"Podrobnosti_o_rozpočte[[#This Row],[Plánované náklady]]-Podrobnosti_o_rozpočte[[#This Row],[Skutočné náklady]]","v":{"v":0,"d":"0 €"}},{"$f":"Podrobnosti_o_rozpočte[[#This Row],[Skutočné náklady]]","v":{"v":0,"d":"0 €"}}]
[null,"Cestovné náklady na autobus a taxík","Preprava",{"v":100,"d":"100 €"},{"v":150,"d":"150 €"},{"$f":"Podrobnosti_o_rozpočte[[#This Row],[Plánované náklady]]-Podrobnosti_o_rozpočte[[#This Row],[Skutočné náklady]]","v":{"v":-50,"d":"-50 €"}},{"$f":"Podrobnosti_o_rozpočte[[#This Row],[Skutočné náklady]]","v":{"v":150,"d":"150 €"}}]
[null,"Palivo","Preprava",{"v":450,"d":"450 €"},{"v":400,"d":"400 €"},{"$f":"Podrobnosti_o_rozpočte[[#This Row],[Plánované náklady]]-Podrobnosti_o_rozpočte[[#This Row],[Skutočné náklady]]","v":{"v":50,"d":"50 €"}},{"$f":"Podrobnosti_o_rozpočte[[#This Row],[Skutočné náklady]]","v":{"v":400,"d":"400 €"}}]
[null,"Poistenie","Preprava",{"v":300,"d":"300 €"},{"v":300,"d":"300 €"},{"$f":"Podrobnosti_o_rozpočte[[#This Row],[Plánované náklady]]-Podrobnosti_o_rozpočte[[#This Row],[Skutočné náklady]]","v":{"v":0,"d":"0 €"}},{"$f":"Podrobnosti_o_rozpočte[[#This Row],[Skutočné náklady]]","v":{"v":300,"d":"300 €"}}]
[null,"Licenčné poplatky ","Preprava",{"v":25,"d":"25 €"},{"v":25,"d":"25 €"},{"$f":"Podrobnosti_o_rozpočte[[#This Row],[Plánované náklady]]-Podrobnosti_o_rozpočte[[#This Row],[Skutočné náklady]]","v":{"v":0,"d":"0 €"}},{"$f":"Podrobnosti_o_rozpočte[[#This Row],[Skutočné náklady]]","v":{"v":25,"d":"25 €"}}]
[null,"Údržba","Preprava",{"v":100,"d":"100 €"},{"v":50,"d":"50 €"},{"$f":"Podrobnosti_o_rozpočte[[#This Row],[Plánované náklady]]-Podrobnosti_o_rozpočte[[#This Row],[Skutočné náklady]]","v":{"v":50,"d":"50 €"}},{"$f":"Podrobnosti_o_rozpočte[[#This Row],[Skutočné náklady]]","v":{"v":50,"d":"50 €"}}]
[null,"Parkovacie poplatky","Preprava",null,null,{"$f":"Podrobnosti_o_rozpočte[[#This Row],[Plánované náklady]]-Podrobnosti_o_rozpočte[[#This Row],[Skutočné náklady]]","v":{"v":0,"d":"0 €"}},{"$f":"Podrobnosti_o_rozpočte[[#This Row],[Skutočné náklady]]","v":{"v":0,"d":"0 €"}}]
[null,"Splátky za auto","Preprava",{"v":450,"d":"450 €"},{"v":450,"d":"450 €"},{"$f":"Podrobnosti_o_rozpočte[[#This Row],[Plánované náklady]]-Podrobnosti_o_rozpočte[[#This Row],[Skutočné náklady]]","v":{"v":0,"d":"0 €"}},{"$f":"Podrobnosti_o_rozpočte[[#This Row],[Skutočné náklady]]","v":{"v":450,"d":"450 €"}}]
[null,"Celkom",null,{"$f":"SUBTOTAL(109,Podrobnosti_o_rozpočte[Plánované náklady])","v":{"v":7915,"d":"7,915 €"}},{"$f":"SUBTOTAL(109,Podrobnosti_o_rozpočte[Skutočné náklady])","v":{"v":7860,"d":"7,860 €"}},{"$f":"SUBTOTAL(109,Podrobnosti_o_rozpočte[Rozdiel])","v":{"v":55,"d":"55 €"}}]

{"sheet":"Ďalšie údaje","index":2,"n_rows":15,"n_cols":5,"rows_kept":15}
[null,"Kontingenčná tabuľka pre graf Prehľad rozpočtu",null,null,"Vyhľadávací zoznam kategórií v rámci podrobností o rozpočte"]
[null,"Kategória","Súčet z Skutočné náklady",null,"Vyhľadávanie rozpočtovej kategórie"]
[null,"Deti",140,null,"Deti"]
[null,"Zábava",358,null,"Zábava"]
[null,"Jedlo",1320,null,"Jedlo"]
[null,"Dary a charita",125,null,"Dary a charita"]
[null,"Bývanie",2702,null,"Bývanie"]
[null,"Poistenie",900,null,"Poistenie"]
[null,"Pôžičky",200,null,"Pôžičky"]
[null,"Osobná starostlivosť",140,null,"Osobná starostlivosť"]
[null,"Domáce zvieratá",100,null,"Domáce zvieratá"]
[null,"Úspory alebo investície",200,null,"Úspory alebo investície"]
[null,"Dane",300,null,"Dane"]
[null,"Preprava",1375,null,"Preprava"]
[null,"Celkový súčet",7860]